bitfinex/quotes_SOLUSD_20250514
["timestamp","ask_amount","ask_price","bid_price","bid_amount"]
[1747215285021,5.58098002,179.18,179.15,8.64977233]
[1747215286218,5.58098002,179.18,179.14,8.64977233]
[1747215286419,5.58098002,179.18,179.12,18.64964886]
[1747215286420,14.23075235,179.18,179.13,8.64977233]
[1747215286612,8.64977233,179.17,179.12,8.64977233]
[1747215286813,5.58160303,179.16,179.12,8.64977233]
[1747215287199,5.58160303,179.16,179.13,8.64977233]
[1747215288354,5.58140312,179.17,179.14,8.64977233]
[1747215288928,5.58109173,179.18,179.15,8.64977233]
[1747215289416,5.58109173,179.18,179.14,8.64977233]
[1747215291506,14.23086406,179.18,179.13,8.64977233]
[1747215291711,8.64977233,179.17,179.12,8.64977233]
[1747215292153,8.64977233,179.17,179.11,26.0]
[1747215292319,8.64977233,179.17,179.12,8.64977233]
[1747215292716,5.58160303,179.16,179.12,8.64977233]
[1747215293623,5.58160303,179.16,179.11,26.0]
[1747215293823,14.23137536,179.16,179.11,34.64977233]
[1747215294149,8.64977233,179.14,179.07,18.64964886]
[1747215294318,8.64977233,179.14,179.09,8.64977233]
[1747215294720,5.58253782,179.13,179.09,8.64977233]
[1747215295049,28.86977233,179.12,179.07,8.64977233]
[1747215295537,20.22,179.12,179.08,8.64977233]
[1747215296754,25.80307832,179.12,179.08,8.64977233]
[1747215297054,20.22,179.15,179.11,8.64977233]
[1747215297222,20.22,179.15,179.13,8.64977233]
[1747215298043,20.22,179.15,179.09,44.64964886]
[1747215298345,25.80195112,179.15,179.12,8.64977233]
[1747215300143,25.80195112,179.15,179.08,8.64977233]
[1747215300144,8.64977233,179.13,179.08,8.64977233]
[1747215300343,8.64977233,179.13,179.06,18.64964886]
[1747215300532,8.64977233,179.13,179.08,8.64977233]
[1747215301259,5.58284948,179.12,179.08,8.64977233]
[1747215301459,5.58284948,179.12,179.05,27.6304]
[1747215301460,8.64977233,179.1,179.05,27.6304]
[1747215301753,19.53997319,179.12,179.06,8.64977233]
[1747215301925,8.64977233,179.11,179.07,8.64977233]
[1747215302954,5.58347292,179.1,179.06,8.64977233]
[1747215303449,5.58347292,179.1,179.04,26.0]
[1747215303450,5.58347292,179.1,179.07,8.64977233]
[1747215304649,28.19083647,179.11,179.06,8.64977233]
[1747215304848,8.64977233,179.1,179.06,8.64977233]
[1747215305044,8.64977233,179.1,179.04,26.0]
[1747215305234,8.64977233,179.09,179.02,18.64964886]
[1747215305435,28.78977233,179.08,179.03,8.64977233]
[1747215306123,8.64977233,179.07,179.02,8.64977233]
[1747215306326,8.64977233,179.06,179.01,8.64977233]
[1747215306647,5.58503211,179.05,179.01,8.64977233]
[1747215309140,5.58503211,179.05,178.99,44.64964886]
[1747215309453,5.58503211,179.05,179.01,8.64977233]
[1747215309849,8.64977233,179.03,178.96,18.64964886]
[1747215310155,8.64977233,179.03,178.96,44.64964886]
[1747215310363,8.64977233,179.02,178.97,8.64977233]
[1747215310540,20.14,179.01,178.97,8.64977233]
[1747215311346,5.58659217,179.0,178.96,34.64977233]
[1747215312065,14.2363645,179.0,178.94,26.0]
[1747215312244,5.58659217,179.0,178.96,8.64977233]
[1747215313266,14.2363645,179.0,178.96,8.64977233]
[1747215313974,5.58659217,179.0,178.96,8.64977233]
[1747215314149,5.58659217,179.0,178.94,26.0]
[1747215314354,5.58659217,179.0,178.96,8.64977233]
[1747215314664,5.58659217,179.0,178.94,26.0]
[1747215314964,5.58659217,179.0,178.96,8.64977233]
[1747215315263,14.2363645,179.0,178.95,8.64977233]
[1747215315769,14.2363645,179.0,178.94,26.0]
[1747215315770,8.64977233,178.99,178.94,26.0]
[1747215315941,8.64977233,178.99,178.94,34.64977233]
[1747215316752,8.64977233,178.98,178.94,8.64977233]
[1747215317063,19.55307261,179.0,178.92,18.64964886]
[1747215317377,8.64977233,178.99,178.94,8.64977233]
[1747215318157,8.64977233,178.99,178.92,18.64964886]
[1747215318466,8.64977233,178.99,178.94,8.64977233]
[1747215319274,5.58721644,178.98,178.94,8.64977233]
[1747215319446,14.23698877,178.98,178.94,8.64977233]
[1747215321561,28.20502989,178.98,178.93,8.64977233]
[1747215321760,8.64977233,178.97,178.92,8.64977233]
[1747215321969,19.55525756,178.98,178.9,8.64977233]
[1747215321970,8.64977233,178.95,178.9,8.64977233]
[1747215322137,20.14,178.94,178.9,8.64977233]
[1747215322540,5.58877773,178.93,178.9,8.64977233]
[1747215322972,14.23855006,178.93,178.88,26.0]
[1747215323170,8.64977233,178.91,178.86,8.64977233]
[1747215323476,14.23855006,178.93,178.88,8.64977233]
[1747215323676,5.58877773,178.93,178.9,8.64977233]
[1747215323858,5.58877773,178.93,178.89,8.64977233]
[1747215324037,8.64977233,178.92,178.88,8.64977233]
[1747215324376,8.64977233,178.92,178.87,8.64977233]
[1747215324554,5.59002739,178.89,178.84,18.64964886]
[1747215324866,5.59002739,178.89,178.85,8.64977233]
[1747215325065,5.59002739,178.89,178.84,18.64964886]
[1747215325371,5.59002739,178.89,178.86,8.64977233]
[1747215326559,5.58971492,178.9,178.86,8.64977233]
[1747215326765,28.78977233,178.94,178.89,8.64977233]
[1747215326950,25.72854169,178.94,178.91,8.64977233]
[1747215327154,25.72854169,178.94,178.92,8.64977233]
[1747215328072,20.14,178.94,178.93,8.64977233]
[1747215329373,20.14,178.94,178.91,18.64964886]
[1747215329551,20.14,178.94,178.93,8.64977233]
[1747215333663,25.7284654,178.94,178.93,8.64977233]
[1747215333862,25.7284654,178.94,178.9,1.6036]
[1747215334052,25.7284654,178.94,178.93,8.64977233]
[1747215334255,48.34940124,178.94,178.82,1.6415]
[1747215334482,20.08,178.93,178.9,8.64977233]
[1747215334783,20.08,178.93,178.91,8.64977233]
[1747215335477,25.66887402,178.93,178.92,8.64977233]
[1747215336581,25.66887402,178.93,178.85,5.73319674]
[1747215336755,25.66887402,178.93,178.9,8.64977233]
[1747215337172,20.14,178.94,178.92,8.64977233]
[1747215337358,20.14,178.94,178.93,8.64977233]
[1747215338179,20.14,178.94,178.93,27.29942119]
[1747215340989,20.14,178.94,178.93,8.64977233]
[1747215341173,25.7284654,178.94,178.93,8.64977233]
[1747215341986,20.14,178.94,178.93,8.64977233]
[1747215342202,13.96545025,179.02,178.93,8.64977233]
[1747215342354,20.06,178.99,178.95,18.64964886]
[1747215342554,229.28,179.04,178.99,18.64964886]
[1747215342875,229.28,179.04,179.03,8.64977233]
[1747215343685,234.86555051,179.04,179.03,8.64977233]
[1747215343978,234.86555051,179.04,178.98,26.0]
[1747215344182,248.82891065,179.04,179.01,8.64977233]
[1747215344370,248.82891065,179.04,179.02,8.64977233]
[1747215345483,248.82891065,179.04,179.03,8.64977233]
[1747215346394,234.86555051,179.04,179.03,8.64977233]
[1747215349383,229.28,179.04,179.03,8.64977233]
[1747215352492,20.06,179.04,179.03,27.29942119]
[1747215352789,209.14,179.15,179.04,46.29634886]
[1747215352790,20.06,179.09,179.04,46.29634886]
[1747215352968,20.06,179.11,179.08,8.64977233]
[1747215353167,20.06,179.11,179.1,8.64977233]
[1747215353687,20.06,179.11,179.08,8.64977233]
[1747215353887,20.06,179.11,179.04,46.29634886]
[1747215353888,20.06,179.11,179.1,8.64977233]
[1747215354195,25.64316118,179.11,179.1,8.64977233]
[1747215354388,25.64316118,179.11,179.04,46.29634886]
[1747215354571,25.64316118,179.11,179.09,8.64977233]
[1747215355173,25.64316118,179.11,179.08,8.64977233]
[1747215355373,39.60106414,179.11,179.07,8.64977233]
[1747215355874,8.64977233,179.09,179.04,8.64977233]
[1747215356264,19.54433772,179.08,179.04,8.64977233]
[1747215357068,19.54433772,179.08,179.05,8.64977233]
[1747215357288,19.54433772,179.08,179.07,8.64977233]
[1747215358496,5.58347292,179.1,179.07,8.64977233]
[1747215358674,5.58347292,179.1,179.08,8.64977233]
[1747215359383,19.54215522,179.1,179.07,8.64977233]
[1747215359793,28.19192755,179.1,179.06,8.64977233]
[1747215360378,19.54215522,179.1,179.06,8.64977233]
[1747215361791,28.19192755,179.1,179.06,8.64977233]
[1747215361999,8.64977233,179.09,179.04,8.64977233]
[1747215362400,8.64977233,179.09,179.01,26.0]
[1747215362694,8.64977233,179.07,179.03,8.64977233]
[1747215362897,8.64977233,179.04,178.99,8.64977233]
[1747215363201,20.06,179.03,178.99,8.64977233]
[1747215363572,28.70977233,179.03,178.96,1.5915]
[1747215363774,28.70977233,179.03,178.96,8.64977233]
[1747215363775,19.55307261,179.0,178.96,8.64977233]
[1747215363995,28.20284494,179.0,178.95,8.64977233]
[1747215364294,19.98,178.99,178.95,8.64977233]
[1747215364708,8.64977233,178.98,178.93,8.64977233]
[1747215365295,8.64977233,178.98,178.94,8.64977233]
[1747215365596,19.98,178.99,178.95,8.64977233]
[1747215365773,25.54721644,178.98,178.97,8.64977233]
[1747215366189,25.54721644,178.98,178.91,26.0]
[1747215366394,25.54721644,178.98,178.96,8.64977233]
[1747215366785,19.96,178.98,178.97,8.64977233]
[1747215367180,5.58565603,179.03,178.97,8.64977233]
[1747215367375,19.96,179.02,179.0,8.64977233]
[1747215367603,19.96,179.02,179.01,8.64977233]
[1747215367899,25.54596804,179.02,179.01,8.64977233]
[1747215368103,19.96,179.02,179.01,8.64977233]
[1747215369203,25.56574761,179.03,179.01,8.64977233]
[1747215369501,25.56574761,179.03,179.0,8.64977233]
[1747215369705,25.56574761,179.03,179.01,8.64977233]
[1747215369900,25.56574761,179.03,179.02,8.64977233]
[1747215370811,25.56574761,179.03,179.0,8.64977233]
[1747215370983,39.52988769,179.03,179.0,8.64977233]
[1747215371185,39.52988769,179.03,178.96,7.7923]
[1747215371380,39.52988769,179.03,179.01,8.64977233]
[1747215371801,39.52988769,179.03,178.96,7.7923]
[1747215371997,39.52988769,179.03,179.0,8.64977233]
[1747215372698,39.52988769,179.03,178.95,18.64964886]
[1747215372909,8.64977233,179.02,178.97,8.64977233]
[1747215374711,19.98,178.96,178.93,8.64977233]
[1747215374905,28.62977233,178.96,178.91,8.64977233]
[1747215375884,19.55853589,178.95,178.91,8.64977233]
[1747215376403,19.55853589,178.95,178.88,1.552]
[1747215376599,19.55853589,178.95,178.88,27.552]
[1747215376908,19.55853589,178.95,178.91,8.64977233]
[1747215379111,28.20830822,178.95,178.9,8.64977233]
[1747215379410,8.64977233,178.92,178.85,18.64964886]
[1747215379613,28.58977233,178.92,178.87,8.64977233]
[1747215380408,5.58940249,178.91,178.87,8.64977233]
[1747215380789,19.56290872,178.91,178.87,8.64977233]
[1747215381702,5.58940249,178.91,178.89,8.64977233]
[1747215382404,5.58940249,178.91,178.9,8.64977233]
[1747215382715,5.58940249,178.91,178.89,8.64977233]
[1747215383086,45.98,178.96,178.9,8.64977233]
[1747215383322,19.94,178.95,178.92,8.64977233]
[1747215383690,19.94,178.95,178.86,18.64964886]
[1747215383906,19.94,178.95,178.91,8.64977233]
[1747215384616,48.14830822,178.95,178.86,18.64964886]
[1747215384795,48.14830822,178.95,178.91,8.64977233]
[1747215385117,39.49853589,178.95,178.91,8.64977233]
[1747215385502,39.49853589,178.95,178.92,8.64977233]
[1747215385702,48.14830822,178.95,178.86,18.64964886]
[1747215385937,8.64977233,178.94,178.89,8.64977233]
[1747215386613,8.64977233,178.94,178.9,8.64977233]
[1747215386614,5.58877773,178.93,178.9,8.64977233]
[1747215387202,5.58877773,178.93,178.89,8.64977233]
[1747215387203,19.56072206,178.93,178.89,8.64977233]
[1747215388116,19.56072206,178.93,178.86,18.64964886]
[1747215388117,5.58877773,178.93,178.9,8.64977233]
[1747215388426,5.58877773,178.93,178.91,8.64977233]
[1747215388619,5.58815311,178.95,178.92,8.64977233]
[1747215388824,19.55853589,178.95,178.91,8.64977233]
[1747215389810,19.55853589,178.95,178.86,18.64964886]
[1747215390010,19.55853589,178.95,178.91,8.64977233]
[1747215390412,28.20830822,178.95,178.9,8.64977233]
[1747215391116,8.64977233,178.94,178.9,8.64977233]
[1747215391427,28.20830822,178.95,178.9,8.64977233]
[1747215392700,28.20830822,178.95,178.86,18.64964886]
[1747215392701,5.58815311,178.95,178.94,8.64977233]
[1747215393327,26.0,178.92,178.84,1.5359]
[1747215393627,8.64977233,178.91,178.86,8.64977233]
[1747215394931,19.56400223,178.9,178.86,8.64977233]
[1747215395132,19.9,178.89,178.86,8.64977233]
[1747215395714,28.54977233,178.89,178.84,1.5359]
[1747215395924,28.54977233,178.89,178.84,8.64977233]
[1747215396325,28.54977233,178.89,178.81,26.0]
[1747215396509,28.54977233,178.89,178.84,8.64977233]
[1747215396910,19.56618962,178.88,178.84,8.64977233]
[1747215397438,5.59033989,178.88,178.86,8.64977233]
[1747215398837,5.59033989,178.88,178.81,31.59245663]
[1747215399149,5.59033989,178.88,178.85,8.64977233]
[1747215399824,5.59033989,178.88,178.81,26.0]
[1747215400027,5.59033989,178.88,178.8,20.25764886]
[1747215400028,14.24011222,178.88,178.8,20.25764886]
[1747215400334,28.21596195,178.88,178.83,8.64977233]
[1747215400720,8.64977233,178.86,178.81,8.64977233]
[1747215400955,19.56618962,178.88,178.81,8.64977233]
[1747215401132,8.64977233,178.87,178.82,8.64977233]
[1747215401336,5.5912776,178.85,178.81,8.64977233]
[1747215401543,14.24104993,178.85,178.78,18.64964886]
[1747215401730,28.21924394,178.85,178.8,8.64977233]
[1747215402134,28.21924394,178.85,178.81,8.64977233]
[1747215402135,19.56947161,178.85,178.81,8.64977233]
[1747215402859,5.5912776,178.85,178.83,8.64977233]
[1747215403351,19.9,178.84,178.83,8.64977233]
[1747215403515,25.49159024,178.84,178.83,8.64977233]
[1747215403722,19.9,178.86,178.83,8.64977233]
[1747215404023,19.9,178.86,178.85,8.64977233]
[1747215404216,19.9,178.87,178.85,8.64977233]
[1747215404845,25.49075894,178.87,178.85,8.64977233]
[1747215405140,25.49075894,178.87,178.86,8.64977233]
[1747215405338,25.49075894,178.87,178.84,8.64977233]
[1747215405848,25.49075894,178.87,178.86,8.64977233]
[1747215406042,28.22508871,178.95,178.86,8.64977233]
[1747215406043,32.211,178.94,178.86,8.64977233]
[1747215406337,8.64977233,178.92,178.83,20.24834886]
[1747215406558,8.64977233,178.89,178.83,1.5987]
[1747215406727,8.64977233,178.89,178.84,8.64977233]
[1747215406914,5.59033989,178.88,178.84,8.64977233]
[1747215408857,19.56618962,178.88,178.84,8.64977233]
[1747215409055,19.56618962,178.88,178.81,26.0]
[1747215409236,28.21596195,178.88,178.83,8.64977233]
[1747215409747,8.64977233,178.87,178.83,8.64977233]
[1747215409948,48.42977233,178.86,178.81,8.64977233]
[1747215410833,8.64977233,178.85,178.81,8.64977233]
[1747215411035,5.59159024,178.84,178.81,8.64977233]
[1747215411244,5.59159024,178.84,178.78,1.5209]
[1747215411628,5.59159024,178.84,178.81,8.64977233]
[1747215412059,5.59159024,178.84,178.78,1.5209]
[1747215412460,5.59159024,178.84,178.81,8.64977233]
[1747215412931,5.59159024,178.84,178.8,8.64977233]
[1747215413753,5.59159024,178.84,178.81,8.64977233]
[1747215414538,5.59159024,178.84,178.82,8.64977233]
[1747215415251,5.5913392,178.85,178.83,8.64977233]
[1747215415447,5.5913392,178.85,178.84,8.64977233]
[1747215415756,19.9,178.86,178.84,8.64977233]
[1747215416048,19.9,178.86,178.85,8.64977233]
[1747215417255,13.97405259,178.91,178.85,8.64977233]
[1747215417463,25.48971492,178.9,178.88,8.64977233]
[1747215417757,25.48971492,178.9,178.89,8.64977233]
[1747215419131,25.48971492,178.9,178.86,8.64977233]
[1747215419132,34.13948725,178.9,178.86,8.64977233]
[1747215419355,48.11377456,178.9,178.86,8.64977233]
[1747215419739,48.11377456,178.9,178.85,8.64977233]
[1747215420459,48.11377456,178.9,178.84,1.6292]
[1747215420632,48.11377456,178.9,178.8,32.5717]
[1747215420633,8.64977233,178.89,178.8,8.1052]
[1747215420833,8.64977233,178.86,178.81,8.64977233]
[1747215421134,28.48977233,178.86,178.81,8.64977233]
[1747215421334,5.5912776,178.85,178.82,8.64977233]
[1747215421539,5.59106143,178.86,178.84,8.64977233]
[1747215421837,5.59106143,178.86,178.85,8.64977233]
[1747215422758,25.49073269,178.87,178.81,44.64964886]
[1747215422952,25.49073269,178.87,178.86,8.64977233]
[1747215424439,19.9,178.87,178.86,8.64977233]
[1747215425059,25.49065242,178.87,178.86,8.64977233]
[1747215425263,19.9,178.87,178.86,8.64977233]
[1747215426333,19.9,178.87,178.86,27.29942119]
[1747215426963,5.58949932,178.91,178.86,27.29942119]
[1747215427134,5.58949932,178.91,178.9,8.64977233]
[1747215427342,5.58949932,178.91,178.89,8.64977233]
[1747215427663,5.58949932,178.91,178.88,8.64977233]
[1747215427836,5.58949932,178.91,178.89,8.64977233]
[1747215428565,5.58949932,178.91,178.9,8.64977233]
[1747215428958,5.58949932,178.91,178.89,8.64977233]
[1747215429750,19.56300555,178.91,178.87,8.64977233]
[1747215430269,8.64977233,178.9,178.81,18.64964886]
[1747215430449,8.64977233,178.9,178.85,8.64977233]
[1747215430764,28.21277788,178.91,178.86,8.64977233]
[1747215430962,8.64977233,178.9,178.85,8.64977233]
[1747215432040,8.64977233,178.88,178.81,44.64964886]
[1747215432240,8.64977233,178.88,178.8,1.5335]
[1747215432241,8.64977233,178.87,178.82,8.64977233]
[1747215433543,28.46977233,178.88,178.83,8.64977233]
[1747215434047,5.59065242,178.87,178.83,8.64977233]
[1747215434246,5.59065242,178.87,178.85,8.64977233]
[1747215434453,5.59065242,178.87,178.86,8.64977233]
[1747215434647,25.41065242,178.87,178.86,8.64977233]
[1747215434962,25.41065242,178.87,178.85,8.64977233]
[1747215435154,25.41065242,178.87,178.83,8.64977233]
[1747215435361,25.41065242,178.87,178.81,18.64964886]
[1747215435558,48.03705582,178.87,178.82,8.64977233]
[1747215435766,48.03705582,178.87,178.8,27.5335]
[1747215436070,39.38728349,178.87,178.83,8.64977233]
[1747215437072,39.38728349,178.87,178.8,27.5335]
[1747215437372,39.38728349,178.87,178.82,8.64977233]
[1747215437373,48.03705582,178.87,178.82,8.64977233]
[1747215438350,39.38728349,178.87,178.83,8.64977233]
[1747215439264,25.41065242,178.87,178.83,8.64977233]
[1747215439469,25.41065242,178.87,178.85,8.64977233]
[1747215440455,25.41065242,178.87,178.84,8.64977233]
[1747215441667,25.41065242,178.87,178.8,7.12619724]
[1747215441668,25.41065242,178.87,178.8,25.7758461]
[1747215441969,25.41065242,178.87,178.84,8.64977233]
[1747215442862,25.41065242,178.87,178.83,8.64977233]
[1747215443875,8.64977233,178.86,178.8,1.5335]
[1747215444058,8.64977233,178.85,178.8,10.18327233]
[1747215444258,8.64977233,178.86,178.81,8.64977233]
[1747215445576,19.56947161,178.85,178.81,8.64977233]
[1747215446572,5.5912776,178.85,178.82,8.64977233]
[1747215447071,5.5912776,178.85,178.8,1.5335]
[1747215447375,5.5912776,178.85,178.82,8.64977233]
[1747215447670,28.21814983,178.86,178.8,1.5335]
[1747215447875,28.21814983,178.86,178.81,8.64977233]
[1747215448044,19.5683775,178.86,178.82,8.64977233]
[1747215448558,8.64977233,178.84,178.75,1.5331]
[1747215448772,8.64977233,178.84,178.79,8.64977233]
[1747215448973,28.42977233,178.83,178.76,18.64964886]
[1747215449275,28.42977233,178.83,178.78,8.64977233]
[1747215449752,28.42977233,178.83,178.76,18.64964886]
[1747215449753,5.59221563,178.82,178.79,8.64977233]
[1747215451682,5.59221563,178.82,178.8,8.64977233]
[1747215451855,5.59197686,178.83,178.81,8.64977233]
[1747215452062,5.59197686,178.83,178.82,8.64977233]
[1747215452676,5.59197686,178.83,178.76,0.28432314]
[1747215452976,5.59197686,178.83,178.81,8.64977233]
[1747215453374,5.59197686,178.83,178.82,8.64977233]
[1747215455583,28.21814983,178.86,178.81,8.64977233]
[1747215456380,19.5683775,178.86,178.82,8.64977233]
[1747215456757,19.5683775,178.86,178.82,5.64977233]
[1747215461485,19.5683775,178.86,178.81,8.64977233]
[1747215461984,19.5683775,178.86,178.78,5.59339857]
[1747215461985,5.590965,178.86,178.83,8.64977233]
[1747215462784,5.590965,178.86,178.82,8.64977233]
[1747215463088,5.590965,178.86,178.83,8.64977233]
[1747215463591,5.590965,178.86,178.79,24.24276186]
[1747215463889,5.590965,178.86,178.83,8.64977233]
[1747215464074,5.590965,178.86,178.79,24.24276186]
[1747215464687,5.590965,178.86,178.83,8.64977233]
[1747215465593,5.590965,178.86,178.82,8.64977233]
[1747215465889,5.590965,178.86,178.79,18.64964886]
[1747215465890,5.590965,178.86,178.83,8.64977233]
[1747215467589,28.21814983,178.86,178.78,26.0]
[1747215467886,8.64977233,178.82,178.77,8.64977233]
[1747215468386,19.76,178.81,178.77,8.64977233]
[1747215468564,5.59284116,178.8,178.76,8.64977233]
[1747215469684,19.57494406,178.8,178.76,8.64977233]
[1747215470567,5.59284116,178.8,178.77,8.64977233]
[1747215471407,5.59284116,178.8,178.75,1.5331]
[1747215471695,5.59284116,178.8,178.77,8.64977233]
[1747215472079,5.59284116,178.8,178.75,1.5331]
[1747215472080,19.57494406,178.8,178.76,8.64977233]
[1747215472289,28.22471639,178.8,178.75,8.64977233]
[1747215473807,8.64977233,178.79,178.75,8.64977233]
[1747215474010,28.22471639,178.8,178.75,8.64977233]
[1747215477597,8.64977233,178.79,178.74,8.64977233]
[1747215477902,8.64977233,178.77,178.72,8.64977233]
[1747215478085,8.64977233,178.78,178.73,8.64977233]
[1747215479995,5.59377971,178.77,178.73,8.64977233]
[1747215480310,5.59377971,178.77,178.75,8.64977233]
[1747215480485,5.59337769,178.79,178.76,8.64977233]
[1747215480679,5.59337769,178.79,178.78,8.64977233]
[1747215480879,5.59337769,178.79,178.77,8.64977233]
[1747215481388,5.59284116,178.8,178.77,8.64977233]
[1747215483109,19.76,178.81,178.79,8.64977233]
[1747215483481,19.76,178.81,178.8,8.64977233]
[1747215484389,5.59098135,178.86,178.81,18.64964886]
[1747215484589,19.76,178.85,178.84,8.64977233]
[1747215485511,25.3512776,178.85,178.84,8.64977233]
[1747215485813,25.3512776,178.85,178.82,8.64977233]
[1747215485994,25.3512776,178.85,178.83,8.64977233]
[1747215487095,19.76,178.85,178.84,8.64977233]
[1747215487303,25.3512776,178.85,178.84,8.64977233]
[1747215487504,19.76,178.85,178.84,8.64977233]
[1747215487885,25.3512776,178.85,178.84,8.64977233]
[1747215488092,25.3512776,178.85,178.83,8.64977233]
[1747215489616,25.3512776,178.85,178.82,8.64977233]
[1747215490708,25.3512776,178.85,178.83,8.64977233]
[1747215491190,19.76,178.85,178.83,8.64977233]
[1747215491505,19.76,178.85,178.84,8.64977233]
[1747215491689,25.3512776,178.85,178.84,8.64977233]
[1747215492086,25.3512776,178.85,178.79,24.24268255]
[1747215492292,25.3512776,178.85,178.79,18.64964886]
[1747215492496,25.3512776,178.85,178.83,8.64977233]
[1747215493996,25.3512776,178.85,178.82,8.64977233]
[1747215495407,25.3512776,178.85,178.79,18.64964886]
[1747215495622,25.3512776,178.85,178.82,8.64977233]
[1747215495827,25.3512776,178.85,178.83,8.64977233]
[1747215496418,25.3512776,178.85,178.84,8.64977233]
[1747215498351,19.76,178.85,178.84,8.64977233]
[1747215499416,19.76,178.85,178.84,28.87172119]
[1747215500439,5.59030883,178.89,178.85,18.64964886]
[1747215500620,5.59030883,178.89,178.88,8.64977233]
[1747215501015,19.7,178.9,178.88,8.64977233]
[1747215501213,19.7,178.9,178.89,8.64977233]
[1747215501735,25.28971492,178.9,178.89,8.64977233]
[1747215502117,19.7,178.9,178.89,8.64977233]
[1747215503538,25.28971492,178.9,178.89,8.64977233]
[1747215504008,19.7,178.9,178.89,8.64977233]
[1747215504631,25.28971492,178.9,178.89,8.64977233]
[1747215504941,25.28971492,178.9,178.87,8.64977233]
[1747215505239,25.28971492,178.9,178.77,0.6]
[1747215505240,47.91377456,178.9,178.85,8.64977233]
[1747215505723,8.64977233,178.89,178.84,8.64977233]
[1747215505921,47.91377456,178.9,178.85,8.64977233]
[1747215506121,39.26400223,178.9,178.86,8.64977233]
[1747215506322,39.26400223,178.9,178.88,8.64977233]
[1747215506821,25.28971492,178.9,178.88,8.64977233]
[1747215508015,25.28971492,178.9,178.84,18.64964886]
[1747215508215,25.28971492,178.9,178.87,8.64977233]
[1747215508625,25.28971492,178.9,178.85,8.64977233]
[1747215508626,33.93948725,178.9,178.85,8.64977233]
[1747215509225,39.26400223,178.9,178.86,8.64977233]
[1747215509614,39.26400223,178.9,178.83,44.64964886]
[1747215509814,39.26400223,178.9,178.86,8.64977233]
[1747215511218,39.26400223,178.9,178.83,44.64964886]
[1747215511219,8.64977233,178.89,178.79,1.88642314]
[1747215511547,28.21705582,178.87,178.82,8.64977233]
[1747215512843,19.56728349,178.87,178.82,8.64977233]
[1747215513053,19.56728349,178.87,178.84,8.64977233]
[1747215513613,19.56728349,178.87,178.81,0.28432314]
[1747215513828,19.56728349,178.87,178.84,8.64977233]
[1747215514213,8.64977233,178.86,178.81,0.28432314]
[1747215514421,28.21705582,178.87,178.82,8.64977233]
[1747215516046,28.21705582,178.87,178.8,18.64964886]
[1747215516370,19.6,178.86,178.81,8.64977233]
[1747215516642,8.64977233,178.85,178.8,8.64977233]
[1747215516951,8.64977233,178.84,178.79,8.64977233]
[1747215517245,5.59221563,178.82,178.78,8.64977233]
[1747215517960,19.57275471,178.82,178.78,8.64977233]
[1747215518330,28.22252704,178.82,178.77,8.64977233]
[1747215519662,28.22252704,178.82,178.75,18.64964886]
[1747215519956,28.22252704,178.82,178.77,8.64977233]
[1747215520163,28.22252704,178.82,178.75,18.64964886]
[1747215520457,28.22252704,178.82,178.77,8.64977233]
[1747215521765,28.22252704,178.82,178.79,8.64977233]
[1747215521766,5.59221563,178.82,178.79,8.64977233]
[1747215521976,5.59221563,178.82,178.8,8.64977233]
[1747215522769,5.59159024,178.84,178.81,8.64977233]
[1747215522931,5.59159024,178.84,178.78,18.64964886]
[1747215522932,5.59159024,178.84,178.82,8.64977233]
[1747215523252,5.59159024,178.84,178.83,8.64977233]
[1747215523434,5.59159024,178.84,178.77,0.28432314]
[1747215523435,5.59159024,178.84,178.8,0.28432314]
[1747215523758,14.24104993,178.85,178.8,8.64977233]
[1747215524057,28.21924394,178.85,178.8,8.64977233]
[1747215524756,28.21924394,178.85,178.8,8.61182358]
[1747215524935,19.56947161,178.85,178.8,8.61182358]
[1747215525134,28.21924394,178.85,178.8,8.61182358]
[1747215525660,19.56947161,178.85,178.81,8.64977233]
[1747215527051,19.56947161,178.85,178.82,8.64977233]
[1747215527655,5.5912776,178.85,178.82,8.64977233]
[1747215527855,5.5912776,178.85,178.83,8.64977233]
[1747215529087,5.5912776,178.85,178.82,8.64977233]
[1747215530563,5.5912776,178.85,178.8,18.933972]
[1747215530564,5.5912776,178.85,178.83,8.64977233]
[1747215531064,19.6,178.86,178.84,8.64977233]
[1747215531265,19.6,178.86,178.85,8.64977233]
[1747215532756,25.20959938,178.91,178.86,0.14216157]
[1747215533057,25.20959938,178.91,178.9,8.64977233]
[1747215533264,25.20940249,178.91,178.9,8.64977233]
[1747215534977,25.20940249,178.91,178.88,0.14216157]
[1747215535186,25.20940249,178.91,178.9,8.64977233]
[1747215535550,25.20940249,178.91,178.89,8.64977233]
[1747215535751,25.20940249,178.91,178.88,8.64977233]
[1747215536279,25.20940249,178.91,178.89,8.64977233]
[1747215537680,25.20940249,178.91,178.9,8.64977233]
[1747215538688,25.20940249,178.91,178.86,18.79181043]
[1747215538853,25.20940249,178.91,178.9,8.64977233]